Workbook

Sheet Sheet1
A1: 花溪区2023年农村义务教育阶段学校特设岗位计划教师招聘 笔试、试教成绩、总成绩及拟进入体检人员名单
A2: 序号 | B2: 姓名 | C2: 报考单位 | D2: 笔试成绩 | E2: 笔试50% | F2: 面试成绩 | G2: 面试50% | H2: 综合成绩 | I2: 是否进入体检
A3: 1 | B3: 杨梅 | C3: 230401燕楼中心完小-01小学数学（摆古小学） | D3: 81 | E3: 40.50 | F3: 80.33 | G3: 40.17 | H3: =E3+G3 -> 80.67 | I3: 是
A4: 2 | B4: 谢雨 | C4: 230401燕楼中心完小-01小学数学（摆古小学） | D4: 61 | E4: 30.50 | F4: 75 | G4: 37.50 | H4: 68
A5: 3 | B5: 查静 | C5: 230401燕楼中心完小-01小学数学（摆古小学） | D5: 69 | E5: 34.50
A6: 4 | B6: 李秀苹 | C6: 230402马铃中心完小-02小学信息技术 | D6: 67.5 | E6: 33.75 | F6: 79.33 | G6: 39.67 | H6: 73.42 | I6: 是
A7: 5 | B7: 付文佳 | C7: 230402马铃中心完小-02小学信息技术 | D7: 65 | E7: 32.50 | F7: 76.67 | G7: 38.34 | H7: 70.84
A8: 6 | B8: 平付霞 | C8: 230402马铃中心完小-02小学信息技术 | D8: 63 | E8: 31.50 | F8: 78.67 | G8: 39.34 | H8: 70.84
A9: 7 | B9: 黄明琴 | C9: 230402马铃中心完小-03小学信息技术（凯坝小学） | D9: 74.5 | E9: 37.25 | F9: 83.67 | G9: 41.84 | H9: 79.09 | I9: 是
A10: 8 | B10: 杨关 | C10: 230402马铃中心完小-03小学信息技术（凯坝小学） | D10: 68 | E10: 34.00 | F10: 82.67 | G10: 41.34 | H10: 75.34
A11: 9 | B11: 李勇艳 | C11: 230402马铃中心完小-03小学信息技术（凯坝小学） | D11: 68 | E11: 34.00 | F11: 76 | G11: 38.00 | H11: 72
A12: 10 | B12: 张翼 | C12: 230403孟关中心完小-04小学语文 | D12: 72 | E12: 36.00 | F12: 92.33 | G12: 46.17 | H12: 82.17 | I12: 是
A13: 11 | B13: 刘星 | C13: 230403孟关中心完小-04小学语文 | D13: 77 | E13: 38.50 | F13: 86.33 | G13: 43.17 | H13: 81.67 | I13: 是
A14: 12 | B14: 黄经乐 | C14: 230403孟关中心完小-04小学语文 | D14: 71.5 | E14: 35.75 | F14: 90 | G14: 45.00 | H14: 80.75 | I14: 是
A15: 13 | B15: 杨亚飞 | C15: 230403孟关中心完小-04小学语文 | D15: 76.5 | E15: 38.25 | F15: 83.67 | G15: 41.84 | H15: 80.09
A16: 14 | B16: 吴旭菲 | C16: 230403孟关中心完小-04小学语文 | D16: 72.5 | E16: 36.25 | F16: 76.33 | G16: 38.17 | H16: 74.42
A17: 15 | B17: 罗雨丹 | C17: 230403孟关中心完小-04小学语文 | D17: 77 | E17: 38.50
A18: 16 | B18: 李天瑞 | C18: 230403孟关中心完小-04小学语文 | D18: 72.5 | E18: 36.25
A19: 17 | B19: 张晓林 | C19: 230403孟关中心完小-04小学语文 | D19: 72 | E19: 36.00
A20: 18 | B20: 李雪梅 | C20: 230403孟关中心完小-04小学语文 | D20: 70.5 | E20: 35.25
A21: 19 | B21: 吴秋丽 | C21: 230404黔陶中心完小-05小学科学 | D21: 70 | E21: 35.00 | F21: 82.33 | G21: 41.17 | H21: =E21+G21 -> 76.17 | I21: 是
A22: 20 | B22: 张玉 | C22: 230404黔陶中心完小-05小学科学 | D22: 64 | E22: 32.00 | F22: 85.67 | G22: 42.84 | H22: 74.84
A23: 21 | B23: 朱恕英 | C23: 230404黔陶中心完小-05小学科学 | D23: 58 | E23: 29.00 | F23: 81.67 | G23: 40.84 | H23: 69.84
A24: 22 | B24: 周君庆 | C24: 230404黔陶中心完小-06小学道德与法治（马场小学） | D24: 69 | E24: 34.50 | F24: 83 | G24: 41.50 | H24: 76 | I24: 是
A25: 23 | B25: 吴如琴 | C25: 230404黔陶中心完小-06小学道德与法治（马场小学） | D25: 64 | E25: 32.00 | F25: 78.67 | G25: 39.34 | H25: 71.34
A26: 24 | B26: 张楠清 | C26: 230404黔陶中心完小-06小学道德与法治（马场小学） | D26: 64 | E26: 32.00
A27: 25 | B27: 周晓璐 | C27: 230405久安中心完小-07小学英语 | D27: 84 | E27: 42.00 | F27: 85 | G27: 42.50 | H27: =E27+G27 -> 84.5 | I27: 是
A28: 26 | B28: 杨云霞 | C28: 230405久安中心完小-07小学英语 | D28: 85 | E28: 42.50 | F28: 82.33 | G28: 41.17 | H28: 83.67
A29: 27 | B29: 杨远芳 | C29: 230405久安中心完小-07小学英语 | D29: 80 | E29: 40.00 | F29: 84.33 | G29: 42.17 | H29: 82.17
A30: 28 | B30: 胡靖 | C30: 230405久安中心完小-07小学英语 | D30: 80 | E30: 40.00 | F30: 66.67 | G30: 33.34 | H30: 73.34
A31: 29 | B31: 赵丹 | C31: 230405久安中心完小-08小学科学 | D31: 70 | E31: 35.00 | F31: 83 | G31: 41.50 | H31: 76.5 | I31: 是
A32: 30 | B32: 袁润燕 | C32: 230405久安中心完小-08小学科学 | D32: 61 | E32: 30.50 | F32: 81 | G32: 40.50 | H32: 71
A33: 31 | B33: 胡小雄 | C33: 230405久安中心完小-08小学科学 | D33: 61 | E33: 30.50 | F33: 80.33 | G33: 40.17 | H33: 70.67
A34: 32 | B34: 许丹丹 | C34: 230405久安中心完小-08小学科学 | D34: 62 | E34: 31.00
A35: 33 | B35: 宋秀菁 | C35: 230405久安中心完小-09小学数学（打通小学） | D35: 78 | E35: 39.00 | F35: 79.67 | G35: 39.84 | H35: =E35+G35 -> 78.84 | I35: 是
A36: 34 | B36: 钟小梅 | C36: 230405久安中心完小-09小学数学（打通小学） | D36: 76 | E36: 38.00 | F36: 81.33 | G36: 40.67 | H36: 78.67 | I36: 是
A37: 35 | B37: 陈林 | C37: 230405久安中心完小-09小学数学（打通小学） | D37: 76 | E37: 38.00 | F37: 76.33 | G37: 38.17 | H37: 76.17
A38: 36 | B38: 任丹 | C38: 230405久安中心完小-09小学数学（打通小学） | D38: 79 | E38: 39.50 | F38: 72 | G38: 36.00 | H38: 75.5
A39: 37 | B39: 陈王明 | C39: 230405久安中心完小-09小学数学（打通小学） | D39: 85 | E39: 42.50 | F39: 61.67 | G39: 30.84 | H39: 73.34
A40: 38 | B40: 刘肇慧 | C40: 230405久安中心完小-09小学数学（打通小学） | D40: 66 | E40: 33.00 | F40: 64 | G40: 32.00 | H40: 65
A41: 39 | B41: 黄海江 | C41: 230405久安中心完小-10小学信息技术（吴山小学） | D41: 82 | E41: 41.00 | F41: 78.67 | G41: 39.34 | H41: 80.34 | I41: 是
A42: 40 | B42: 金伶俐 | C42: 230405久安中心完小-10小学信息技术（吴山小学） | D42: 76 | E42: 38.00 | F42: 80.67 | G42: 40.34 | H42: 78.34
A43: 41 | B43: 陈宗燕 | C43: 230405久安中心完小-10小学信息技术（吴山小学） | D43: 71.5 | E43: 35.75
A44: 42 | B44: 李丽 | C44: 230405久安中心完小-11小学语文（吴山小学） | D44: 69.5 | E44: 34.75 | F44: 79 | G44: 39.50 | H44: =E44+G44 -> 74.25 | I44: 是
A45: 43 | B45: 吴盼 | C45: 230405久安中心完小-11小学语文（吴山小学） | D45: 63.5 | E45: 31.75 | F45: 84 | G45: 42.00 | H45: 73.75
A46: 44 | B46: 何绿艳 | C46: 230405久安中心完小-11小学语文（吴山小学） | D46: 63.5 | E46: 31.75 | F46: 80.67 | G46: 40.34 | H46: 72.09
A47: 45 | B47: 万文槿 | C47: 230405久安中心完小-11小学语文（吴山小学） | D47: 70.5 | E47: 35.25
A48: 46 | B48: 蒋宛芸 | C48: 230406石板中心完小-12小学道德与法治 | D48: 72 | E48: 36.00 | F48: 94 | G48: 47.00 | H48: =E48+G48 -> 83 | I48: 是
A49: 47 | B49: 刘星琪 | C49: 230406石板中心完小-12小学道德与法治 | D49: 70 | E49: 35.00 | F49: 91 | G49: 45.50 | H49: 80.5
A50: 48 | B50: 王晓丽 | C50: 230406石板中心完小-12小学道德与法治 | D50: 71 | E50: 35.50 | F50: 87.67 | G50: 43.84 | H50: 79.34
A51: 49 | B51: 杨淑君 | C51: 230406石板中心完小-13小学数学 | D51: 83 | E51: 41.50 | F51: 85.67 | G51: 42.84 | H51: 84.34 | I51: 是
A52: 50 | B52: 胡鑫鑫 | C52: 230406石板中心完小-13小学数学 | D52: 81 | E52: 40.50 | F52: 87.33 | G52: 43.67 | H52: 84.17
A53: 51 | B53: 覃艳兰 | C53: 230406石板中心完小-13小学数学 | D53: 80 | E53: 40.00 | F53: 85.67 | G53: 42.84 | H53: 82.84
A54: 52 | B54: 吕庭丹 | C54: 230406石板中心完小-14小学语文（合朋小学） | D54: 74 | E54: 37.00 | F54: 90 | G54: 45.00 | H54: 82 | I54: 是
A55: 53 | B55: 赵孟迪 | C55: 230406石板中心完小-14小学语文（合朋小学） | D55: 75.5 | E55: 37.75
A56: 54 | B56: 张乃春 | C56: 230406石板中心完小-14小学语文（合朋小学） | D56: 75.5 | E56: 37.75
A57: 55 | B57: 王靖萍 | C57: 230406石板中心完小-15小学音乐（合朋小学） | D57: 80 | E57: 40.00 | F57: 85 | G57: 42.50 | H57: =E57+G57 -> 82.5 | I57: 是
A58: 56 | B58: 石姗姗 | C58: 230406石板中心完小-15小学音乐（合朋小学） | D58: 71 | E58: 35.50 | F58: 76 | G58: 38.00 | H58: 73.5
A59: 57 | B59: 邬文茜 | C59: 230406石板中心完小-15小学音乐（合朋小学） | D59: 73 | E59: 36.50
A60: 58 | B60: 班园轶 | C60: 230406石板中心完小-16小学体育（合朋小学） | D60: 57 | E60: 28.50 | F60: 81.33 | G60: 40.67 | H60: 69.17 | I60: 是
A61: 59 | B61: 晏刚 | C61: 230406石板中心完小-16小学体育（合朋小学） | D61: 59 | E61: 29.50 | F61: 78 | G61: 39.00 | H61: 68.5
A62: 60 | B62: 王年美 | C62: 230406石板中心完小-16小学体育（合朋小学） | D62: 54 | E62: 27.00 | F62: 76.67 | G62: 38.34 | H62: 65.34
A63: 61 | B63: 杜凌云 | C63: 230406石板中心完小-17小学体育（蔡冲小学） | D63: 56 | E63: 28.00 | F63: 77.67 | G63: 38.84 | H63: 66.84 | I63: 是
A64: 62 | B64: 毕义娟 | C64: 230406石板中心完小-17小学体育（蔡冲小学） | D64: 63 | E64: 31.50
A65: 63 | B65: 牟文尧 | C65: 230406石板中心完小-17小学体育（蔡冲小学） | D65: 55.5 | E65: 27.75
A66: 64 | B66: 李妲 | C66: 230406石板中心完小-18小学信息技术（蔡冲小学） | D66: 79 | E66: 39.50 | F66: 82.67 | G66: 41.34 | H66: =E66+G66 -> 80.84 | I66: 是
A67: 65 | B67: 张正宇 | C67: 230406石板中心完小-18小学信息技术（蔡冲小学） | D67: 74 | E67: 37.00 | F67: 82.33 | G67: 41.17 | H67: 78.17
A68: 66 | B68: 杨朝银 | C68: 230406石板中心完小-18小学信息技术（蔡冲小学） | D68: 72.5 | E68: 36.25 | F68: 80 | G68: 40.00 | H68: 76.25
A69: 67 | B69: 兰玉梅 | C69: 230406石板中心完小-19小学数学（芦荻小学） | D69: 74 | E69: 37.00 | F69: 84 | G69: 42.00 | H69: 79 | I69: 是
A70: 68 | B70: 冯泽东 | C70: 230406石板中心完小-19小学数学（芦荻小学） | D70: 68 | E70: 34.00 | F70: 86.67 | G70: 43.34 | H70: 77.34
A71: 69 | B71: 李娟 | C71: 230406石板中心完小-19小学数学（芦荻小学） | D71: 64 | E71: 32.00 | F71: 77.33 | G71: 38.67 | H71: 70.67
A72: 70 | B72: 刘文欢 | C72: 230407麦坪中心完小-20小学语文 | D72: 74 | E72: 37.00 | F72: 86 | G72: 43.00 | H72: 80 | I72: 是
A73: 71 | B73: 何贝贝 | C73: 230407麦坪中心完小-20小学语文 | D73: 68 | E73: 34.00 | F73: 79.67 | G73: 39.84 | H73: 73.84
A74: 72 | B74: 王国婵 | C74: 230407麦坪中心完小-20小学语文 | D74: 72 | E74: 36.00 | F74: 74.67 | G74: 37.34 | H74: 73.34
A75: 73 | B75: 冯愿 | C75: 230407麦坪中心完小-21小学数学（彭官小学） | D75: 84 | E75: 42.00 | F75: 81.33 | G75: 40.67 | H75: 82.67 | I75: 是
A76: 74 | B76: 梁富肖 | C76: 230407麦坪中心完小-21小学数学（彭官小学） | D76: 53 | E76: 26.50 | F76: 83 | G76: 41.50 | H76: 68
A77: 75 | B77: 张娅 | C77: 230407麦坪中心完小-21小学数学（彭官小学） | D77: 76 | E77: 38.00
A78: 76 | B78: 刘竹君 | C78: 230407麦坪中心完小-22小学语文（杉木小学） | D78: 73.5 | E78: 36.75 | F78: 80 | G78: 40.00 | H78: =E78+G78 -> 76.75 | I78: 是
A79: 77 | B79: 唐诗芮 | C79: 230407麦坪中心完小-22小学语文（杉木小学） | D79: 70 | E79: 35.00 | F79: 82.67 | G79: 41.34 | H79: 76.34
A80: 78 | B80: 马珺楠 | C80: 230407麦坪中心完小-22小学语文（杉木小学） | D80: 69.5 | E80: 34.75 | F80: 82.67 | G80: 41.34 | H80: 76.09
A81: 79 | B81: 谢丽 | C81: 230407麦坪中心完小-22小学语文（杉木小学） | D81: 69.5 | E81: 34.75 | F81: 70.67 | G81: 35.34 | H81: 70.09
A82: 80 | B82: 文玮琦 | C82: 230407麦坪中心完小-22小学语文（杉木小学） | D82: 69.5 | E82: 34.75
A83: 81 | B83: 韦兴娜 | C83: 230407麦坪中心完小-23小学数学（康寨小学） | D83: 89 | E83: 44.50 | F83: 87 | G83: 43.50 | H83: =E83+G83 -> 88 | I83: 是
A84: 82 | B84: 任宇萌 | C84: 230407麦坪中心完小-23小学数学（康寨小学） | D84: 89 | E84: 44.50 | F84: 83.33 | G84: 41.67 | H84: 86.17
A85: 83 | B85: 饶雪 | C85: 230407麦坪中心完小-23小学数学（康寨小学） | D85: 84 | E85: 42.00 | F85: 85.33 | G85: 42.67 | H85: 84.67
A86: 84 | B86: 杨朋 | C86: 230408高坡中心完小-24小学信息技术 | D86: 66 | E86: 33.00 | F86: 86.33 | G86: 43.17 | H86: 76.17 | I86: 是
A87: 85 | B87: 甘运来 | C87: 230408高坡中心完小-24小学信息技术 | D87: 63.5 | E87: 31.75 | F87: 79 | G87: 39.50 | H87: 71.25
A88: 86 | B88: 陆佳佳 | C88: 230408高坡中心完小-24小学信息技术 | D88: 62 | E88: 31.00 | F88: 79.33 | G88: 39.67 | H88: 70.67
A89: 87 | B89: 徐密 | C89: 230408高坡中心完小-24小学信息技术 | D89: 62 | E89: 31.00 | F89: 78.67 | G89: 39.34 | H89: 70.34
A90: 88 | B90: 熊晓英 | C90: 230408高坡中心完小-25小学音乐 | D90: 68 | E90: 34.00 | F90: 84.33 | G90: 42.17 | H90: 76.17 | I90: 是
A91: 89 | B91: 韦谢宇 | C91: 230408高坡中心完小-25小学音乐 | D91: 68 | E91: 34.00 | F91: 74.67 | G91: 37.34 | H91: 71.34
A92: 90 | B92: 张小燕 | C92: 230408高坡中心完小-25小学音乐 | D92: 66 | E92: 33.00 | F92: 79 | G92: 39.50 | H92: 72.5
A93: 91 | B93: 陈彩燕 | C93: 230409青岩中心完小-26小学音乐 | D93: 83 | E93: 41.50 | F93: 81.33 | G93: 40.67 | H93: 82.17 | I93: 是
A94: 92 | B94: 越芳芳 | C94: 230409青岩中心完小-26小学音乐 | D94: 73.5 | E94: 36.75 | F94: 83.67 | G94: 41.84 | H94: 78.59
A95: 93 | B95: 冉冉 | C95: 230409青岩中心完小-26小学音乐 | D95: 71 | E95: 35.50 | F95: 80 | G95: 40.00 | H95: 75.5
A96: 94 | B96: 刘爱萍 | C96: 230409青岩中心完小-27小学科学 | D96: 67 | E96: 33.50 | F96: 90 | G96: 45.00 | H96: 78.5 | I96: 是
A97: 95 | B97: 冉婷 | C97: 230409青岩中心完小-27小学科学 | D97: 68 | E97: 34.00 | F97: 81.67 | G97: 40.84 | H97: 74.84
A98: 96 | B98: 米银燕 | C98: 230409青岩中心完小-27小学科学 | D98: 65 | E98: 32.50 | F98: 75.33 | G98: 37.67 | H98: 70.17
A99: 97 | B99: 石慧 | C99: 230409青岩中心完小-28小学美术 | D99: 86 | E99: 43.00 | F99: 80.33 | G99: 40.17 | H99: 83.17 | I99: 是
A100: 98 | B100: 孔令凤 | C100: 230409青岩中心完小-28小学美术 | D100: 80 | E100: 40.00
A101: 99 | B101: 王艳 | C101: 230409青岩中心完小-28小学美术 | D101: 78 | E101: 39.00
A102: 100 | B102: 杨春颖 | C102: 230409青岩中心完小-29小学道德与法治 | D102: 67 | E102: 33.50 | F102: 91.33 | G102: 45.67 | H102: =E102+G102 -> 79.17 | I102: 是
A103: 101 | B103: 张银珠 | C103: 230409青岩中心完小-29小学道德与法治 | D103: 64 | E103: 32.00 | F103: 82 | G103: 41.00 | H103: 73
A104: 102 | B104: 徐林娜 | C104: 230409青岩中心完小-29小学道德与法治 | D104: 67 | E104: 33.50 | F104: 70 | G104: 35.00 | H104: 68.5
A105: 103 | B105: 郭先玉 | C105: 230409青岩中心完小-30小学语文（思潜小学） | D105: 72 | E105: 36.00 | F105: 85 | G105: 42.50 | H105: 78.5 | I105: 是
A106: 104 | B106: 刘嫚 | C106: 230409青岩中心完小-30小学语文（思潜小学） | D106: 69 | E106: 34.50 | F106: 83.33 | G106: 41.67 | H106: 76.17
A107: 105 | B107: 刘燕 | C107: 230409青岩中心完小-30小学语文（思潜小学） | D107: 70 | E107: 35.00 | F107: 76.67 | G107: 38.34 | H107: 73.34
A108: 106 | B108: 陈小柳 | C108: 230409青岩中心完小-31小学数学（达夯小学） | D108: 81 | E108: 40.50 | F108: 77.67 | G108: 38.84 | H108: 79.34 | I108: 是
A109: 107 | B109: 周雨薇 | C109: 230409青岩中心完小-31小学数学（达夯小学） | D109: 74 | E109: 37.00 | F109: 81.67 | G109: 40.84 | H109: 77.84
A110: 108 | B110: 邵文琴 | C110: 230409青岩中心完小-31小学数学（达夯小学） | D110: 72 | E110: 36.00 | F110: 82.33 | G110: 41.17 | H110: 77.17
A111: 109 | B111: 宋珍愈 | C111: 230410久安中学-32初中历史 | D111: 75 | E111: 37.50 | F111: 85.67 | G111: 42.84 | H111: 80.34 | I111: 是
A112: 110 | B112: 李克会 | C112: 230410久安中学-32初中历史 | D112: 75.5 | E112: 37.75 | F112: 85 | G112: 42.50 | H112: 80.25
A113: 111 | B113: 欧成敏 | C113: 230410久安中学-32初中历史 | D113: 78 | E113: 39.00 | F113: 78 | G113: 39.00 | H113: 78
A114: 112 | B114: 周宁 | C114: 230411花溪第五中学-33初中化学 | D114: 81 | E114: 40.50 | F114: 81 | G114: 40.50 | H114: 81 | I114: 是
A115: 113 | B115: 李沁彧 | C115: 230411花溪第五中学-33初中化学 | D115: 82 | E115: 41.00 | F115: 75 | G115: 37.50 | H115: 78.5
A116: 114 | B116: 苏玉萌 | C116: 230411花溪第五中学-33初中化学 | D116: 82 | E116: 41.00
A117: 115 | B117: 罗孝惠 | C117: 230412花溪第四中学-34初中地理 | D117: 63 | E117: 31.50 | F117: 90 | G117: 45.00 | H117: =E117+G117 -> 76.5 | I117: 是
A118: 116 | B118: 何静 | C118: 230412花溪第四中学-34初中地理 | D118: 69 | E118: 34.50 | F118: 82.67 | G118: 41.34 | H118: 75.84
A119: 117 | B119: 李双琴 | C119: 230412花溪第四中学-34初中地理 | D119: 64 | E119: 32.00 | F119: 78.67 | G119: 39.34 | H119: 71.34
A120: 118 | B120: 罗琬清 | C120: 230412花溪第四中学-34初中地理 | D120: 63 | E120: 31.50 | F120: 74.67 | G120: 37.34 | H120: 68.84
A121: 119 | B121: 何克成 | C121: 230413青岩贵璜中学-35初中数学 | D121: 88 | E121: 44.00 | F121: 85.67 | G121: 42.84 | H121: 86.84 | I121: 是
A122: 120 | B122: 金春梅 | C122: 230413青岩贵璜中学-35初中数学 | D122: 93 | E122: 46.50 | F122: 74.67 | G122: 37.34 | H122: 83.84 | I122: 是
A123: 121 | B123: 肖淑芳 | C123: 230413青岩贵璜中学-35初中数学 | D123: 88 | E123: 44.00 | F123: 75.33 | G123: 37.67 | H123: 81.67
A124: 122 | B124: 李梅梅 | C124: 230413青岩贵璜中学-35初中数学 | D124: 81 | E124: 40.50 | F124: 80 | G124: 40.00 | H124: 80.5
A125: 123 | B125: 詹娜 | C125: 230413青岩贵璜中学-35初中数学 | D125: 84 | E125: 42.00 | F125: 69.67 | G125: 34.84 | H125: 76.84
A126: 124 | B126: 许仁富 | C126: 230413青岩贵璜中学-35初中数学 | D126: 79 | E126: 39.50
A127: 125 | B127: 王沙 | C127: 230413青岩贵璜中学-36初中道德与法治 | D127: 73 | E127: 36.50 | F127: 85 | G127: 42.50 | H127: =E127+G127 -> 79 | I127: 是
A128: 126 | B128: 朱静 | C128: 230413青岩贵璜中学-36初中道德与法治 | D128: 66 | E128: 33.00 | F128: 89.33 | G128: 44.67 | H128: 77.67
A129: 127 | B129: 何万文 | C129: 230413青岩贵璜中学-36初中道德与法治 | D129: 69 | E129: 34.50 | F129: 77.67 | G129: 38.84 | H129: 73.34
A130: 128 | B130: 杨幸子 | C130: 230414燕楼中学-37初中历史 | D130: 73 | E130: 36.50 | F130: 85 | G130: 42.50 | H130: 79 | I130: 是
A131: 129 | B131: 陈维 | C131: 230414燕楼中学-37初中历史 | D131: 76 | E131: 38.00 | F131: 77 | G131: 38.50 | H131: 76.5
A132: 130 | B132: 石芳 | C132: 230414燕楼中学-37初中历史 | D132: 72 | E132: 36.00 | F132: 79 | G132: 39.50 | H132: 75.5
A133: 131 | B133: 邹翠平 | C133: 230415高坡民族中学-38初中道德与法治 | D133: 69 | E133: 34.50 | F133: 84.67 | G133: 42.34 | H133: 76.84 | I133: 是
A134: 132 | B134: 冉雪 | C134: 230415高坡民族中学-38初中道德与法治 | D134: 66 | E134: 33.00 | F134: 80 | G134: 40.00 | H134: 73
A135: 133 | B135: 司马燕 | C135: 230415高坡民族中学-38初中道德与法治 | D135: 66 | E135: 33.00 | F135: 76.67 | G135: 38.34 | H135: 71.34
A136: 134 | B136: 胡翠丹 | C136: 230415高坡民族中学-39初中语文 | D136: 75 | E136: 37.50 | F136: 79.67 | G136: 39.84 | H136: 77.34 | I136: 是
A137: 135 | B137: 吴新莹 | C137: 230415高坡民族中学-39初中语文 | D137: 68.5 | E137: 34.25 | F137: 86 | G137: 43.00 | H137: 77.25
A138: 136 | B138: 黄江丽 | C138: 230415高坡民族中学-39初中语文 | D138: 68.5 | E138: 34.25 | F138: 83 | G138: 41.50 | H138: 75.75
A139: 137 | B139: 李丽娟 | C139: 230415高坡民族中学-39初中语文 | D139: 73 | E139: 36.50 | F139: 76 | G139: 38.00 | H139: 74.5
A140: 138 | B140: 王婷 | C140: 230415高坡民族中学-40初中数学 | D140: 69 | E140: 34.50 | F140: 84 | G140: 42.00 | H140: 76.5 | I140: 是
A141: 139 | B141: 陈凯 | C141: 230415高坡民族中学-40初中数学 | D141: 69 | E141: 34.50 | F141: 71.33 | G141: 35.67 | H141: 70.17
A142: 140 | B142: 王琴 | C142: 230415高坡民族中学-40初中数学 | D142: 73 | E142: 36.50 | F142: 66 | G142: 33.00 | H142: 69.5
A143: 141 | B143: 罗松秀 | C143: 230415高坡民族中学-41初中英语 | D143: 84 | E143: 42.00 | F143: 84.33 | G143: 42.17 | H143: 84.17 | I143: 是
A144: 142 | B144: 陈川艳 | C144: 230415高坡民族中学-41初中英语 | D144: 80 | E144: 40.00 | F144: 76.33 | G144: 38.17 | H144: 78.17
A145: 143 | B145: 沈盼盼 | C145: 230415高坡民族中学-41初中英语 | D145: 79 | E145: 39.50 | F145: 75 | G145: 37.50 | H145: 77
A146: 144 | B146: 张红伟 | C146: 230415高坡民族中学-41初中英语 | D146: 79 | E146: 39.50 | F146: 71.67 | G146: 35.84 | H146: 75.34
A147: 145 | B147: 王雷 | C147: 230415高坡民族中学-41初中英语 | D147: 79 | E147: 39.50 | F147: 63.33 | G147: 31.67 | H147: 71.17
A148: 146 | B148: 张慧娴 | C148: 230415高坡民族中学-42初中历史 | D148: 70 | E148: 35.00 | F148: 88.67 | G148: 44.34 | H148: 79.34 | I148: 是
A149: 147 | B149: 周建荣 | C149: 230415高坡民族中学-42初中历史 | D149: 65 | E149: 32.50 | F149: 78 | G149: 39.00 | H149: 71.5
A150: 148 | B150: 彭青青 | C150: 230415高坡民族中学-42初中历史 | D150: 65 | E150: 32.50 | F150: 74.67 | G150: 37.34 | H150: 69.84
A151: 149 | B151: 周卫梅 | C151: 230415高坡民族中学-42初中历史 | D151: 66 | E151: 33.00
A152: 150 | B152: 范琴丽 | C152: 230415高坡民族中学-43初中体育 | D152: 61 | E152: 30.50 | F152: 82 | G152: 41.00 | H152: =E152+G152 -> 71.5 | I152: 是
A153: 151 | B153: 陈林银 | C153: 230415高坡民族中学-43初中体育 | D153: 51.5 | E153: 25.75 | F153: 86.33 | G153: 43.17 | H153: 68.92
A154: 152 | B154: 陈森 | C154: 230415高坡民族中学-43初中体育 | D154: 49.6 | E154: 24.80 | F154: 78 | G154: 39.00 | H154: 63.8
A155: 153 | B155: 刘永博 | C155: 230415高坡民族中学-44初中美术 | D155: 67 | E155: 33.50 | F155: 85.67 | G155: 42.84 | H155: 76.34 | I155: 是
A156: 154 | B156: 罗君银 | C156: 230415高坡民族中学-44初中美术 | D156: 75 | E156: 37.50 | F156: 70.33 | G156: 35.17 | H156: 72.67
A157: 155 | B157: 卢小松 | C157: 230415高坡民族中学-44初中美术 | D157: 72 | E157: 36.00 | F157: 73 | G157: 36.50 | H157: 72.5
A158: 156 | B158: 勾思娇 | C158: 230415高坡民族中学-44初中美术 | D158: 67 | E158: 33.50 | F158: 76.33 | G158: 38.17 | H158: 71.67
A159: 157 | B159: 陈珊 | C159: 230415高坡民族中学-44初中美术 | D159: 67 | E159: 33.50 | F159: 76 | G159: 38.00 | H159: 71.5
A160: 158 | B160: 陈芹芹 | C160: 230415高坡民族中学-44初中美术 | D160: 67 | E160: 33.50 | F160: 63.33 | G160: 31.67 | H160: 65.17
A161: 159 | B161: 张祥花 | C161: 230415高坡民族中学-45初中生物 | D161: 68 | E161: 34.00 | F161: 88 | G161: 44.00 | H161: 78 | I161: 是
A162: 160 | B162: 谢艾姻 | C162: 230415高坡民族中学-45初中生物 | D162: 56 | E162: 28.00 | F162: 83.33 | G162: 41.67 | H162: 69.67
A163: 161 | B163: 宋春钰 | C163: 230415高坡民族中学-45初中生物 | D163: 56 | E163: 28.00 | F163: 81 | G163: 40.50 | H163: 68.5
A164: 162 | B164: 张桂玲 | C164: 230415高坡民族中学-45初中生物 | D164: 57 | E164: 28.50 | F164: 77 | G164: 38.50 | H164: 67
A165: 163 | B165: 曹洪雨 | C165: 230415高坡民族中学-45初中生物 | D165: 56 | E165: 28.00 | F165: 76 | G165: 38.00 | H165: 66
A166: 164 | B166: 彭婷 | C166: 230416麦坪中学-46初中物理 | D166: 74 | E166: 37.00 | F166: 87.33 | G166: 43.67 | H166: 80.67 | I166: 是
A167: 165 | B167: 王光慧 | C167: 230416麦坪中学-46初中物理 | D167: 75 | E167: 37.50 | F167: 77.67 | G167: 38.84 | H167: 76.34
A168: 166 | B168: 雷海浪 | C168: 230416麦坪中学-46初中物理 | D168: 75 | E168: 37.50
